Cogmind - Beta 12 @@@ ROGUE MODE // 2024.02.14 @ 05:04:32 Player: Krieg Result: Destroyed by G-47 Trooper with Particle Gun Performance ------------- Evolutions (3) 1500 Regions Visited (11) 2200 Robots Destroyed (138) 690 Value Destroyed (5713) 5713 Prototype IDs (29) 580 Alien Tech Used (0) 0 Bonus (3892) 3892 TOTAL SCORE: 14575 Bonus ------- High Alert Combat Kills 1762 Follower Combat Kills 230 Entered Garrisons 600 Used RIF Installer 1000 Aligned with FarCom 300 Cogmind --------- Core Integrity 0/700 Matter 300/300 Energy 266/290 System Corruption 3% Temperature Cool (9) Movement Walking (120) Location -7/Garrison Parts ------- > --- POWER (1) -------- Reinforced Deuterium Engine > --- PROPULSION (4) --- Aluminum Leg Aluminum Leg Carbon-fiber Leg Carbon-fiber Leg > --- UTILITY (6) ------ Improved Heat Sink Medium Storage Unit Targeting Computer Targeting Computer Advanced Targeting Computer Target Analyzer > --- WEAPON (2) ------- Shock Rifle > --- INVENTORY (10) --- Reinforced Deuterium Engine Armored Treads Aluminum Leg Aluminum Leg Aluminum Leg Carbon-fiber Leg High-capacity Matter Pod (200) Improved Transmission Jammer KE Penetrator Peak State ------------ > --- POWER ------------ Reinforced Deuterium Engine > --- PROPULSION ------- Gravmag System Gravmag System Gravmag System Gravmag System > --- UTILITY ---------- Medium Storage Unit Active Sensor Suite Transmission Jammer Improved Light Armor Plating > --- WEAPON ----------- KE Penetrator Power Sword > --- INVENTORY -------- Reinforced Deuterium Engine Armored Treads High-capacity Matter Pod Advanced Targeting Computer Improved Kinecellerator Improved Transmission Jammer Improved Shield Generator Power Sword [Rating: 69] Favorites ----------- Power Improved Deuterium Engine Engine Improved Deuterium Engine Power Core Micro Nuclear Core Propulsion Armored Treads Treads Armored Treads Leg Aluminum Leg Wheel Wheel Hover Unit Gravmag System Utility Medium Storage Unit Device Transmission Jammer Storage Medium Storage Unit Processor Targeting Computer Hackware Hacking Suite Protection Hardened Heavy Armor Plating Weapon KE Penetrator Energy Gun AWS/Thermal Ballistic Gun KE Penetrator Special Weapon Mining Laser Impact Weapon Powered Hammer Slashing Weapon Power Sword Build | -11 -10 -10 -10 -9 -8 -7 -7 -7 -7 -7 -7 ------- Run | Jun Mat Min Exi Min Mat Fac Gar Fac Gar Fac Gar Slots Evolved 6 | . . . . . 4 2 . . . . . Power . | . . . . . . . . . . . . Propulsion 2 | . . . . . 2 . . . . . . Utility 4 | . . . . . 2 2 . . . . . Weapon . | . . . . . . . . . . . . Parts Attached 125 | 7 13 3 1 3 13 16 22 1 21 4 21 Power 15 | 1 2 1 . 1 2 4 . . 4 . . Engine 11 | 1 2 1 . 1 2 3 . . 1 . . Core 4 | . . . . . . 1 . . 3 . . Reactor . | . . . . . . . . . . . . Propulsion 36 | 2 5 1 . 1 5 4 2 1 3 4 8 Treads 12 | . 2 . . . 1 3 2 1 2 . 1 Leg 10 | . . . . . 2 . . . 1 . 7 Wheel 10 | 2 3 1 . 1 2 1 . . . . . Hover 4 | . . . . . . . . . . 4 . Flight . | . . . . . . . . . . . . Utility 35 | 2 2 . . 1 4 4 5 . 10 . 7 Device 14 | 1 . . . . 1 1 4 . 5 . 2 Storage 2 | 1 1 . . . . . . . . . . Processor 9 | . 1 . . . 1 . . . 3 . 4 Hackware 2 | . . . . . . 2 . . . . . Protection 8 | . . . . 1 2 1 1 . 2 . 1 Artifact . | . . . . . . . . . . . . Weapon 39 | 2 4 1 1 . 2 4 15 . 4 . 6 Energy Gun 17 | . . . 1 . 1 2 11 . . . 2 Energy Cannon . | . . . . . . . . . . . . Ballistic Gun 12 | 2 4 1 . . . 1 1 . 2 . 1 Ballistic Cannon . | . . . . . . . . . . . . Launcher . | . . . . . . . . . . . . Special Weapon 1 | . . . . . 1 . . . . . . Impact Weapon 3 | . . . . . . 1 2 . . . . Slashing Weapon 6 | . . . . . . . 1 . 2 . 3 Piercing Weapon . | . . . . . . . . . . . . Special Melee Weapon . | . . . . . . . . . . . . Unidentified Prototypes 3 | . . . . . . 2 . . 1 . . Parts Lost 30 | . 1 2 . 1 7 1 2 . 9 . 7 Power 3 | . . . . . 1 1 . . 1 . . Propulsion 15 | . 1 1 . 1 5 . 1 . 3 . 3 Utility 9 | . . . . . 1 . 1 . 4 . 3 Weapon 3 | . . 1 . . . . . . 1 . 1 Highest Loss Streak 3 | . 1 2 . 1 3 1 1 . 2 . 2 To Critical Strikes . | . . . . . . . . . . . . Average Slot Usage (%) 81 | . 99 99 91 84 57 78 77 82 77 72 84 Engine 7 | . 14 14 14 14 7 6 7 7 3 7 7 Treads 13 | . 6 14 14 14 5 13 21 21 15 7 . Leg 3 | . . . . . 7 . . . 1 3 22 Wheel 5 | . 21 13 14 13 9 7 . . . . . Hover 1 | . . . . . . . . . . 14 5 Device 9 | . 5 . . . 3 10 13 15 10 15 11 Storage 8 | . 14 14 14 14 9 7 7 7 7 7 7 Processor 5 | . 8 14 14 1 . . . . 13 . 12 Hackware 4 | . . . . . . 11 7 7 4 . . Protection 4 | . . . . 12 5 6 7 7 2 7 2 Energy Gun 4 | . . . 7 14 7 6 4 . . . 2 Ballistic Gun 6 | . 27 27 12 . . . 2 7 11 . . Slashing Weapon 2 | . . . . . . . 1 7 2 7 8 Naked Turns . | . . . . . . . . . . . . Heaviest Build 57 | 12 17 17 21 28 54 54 57 57 57 36 39 Greatest Support 123 | 26 26 20 10 10 20 28 123 117 117 40 50 Greatest Overweight (x) 9 | . 1 1 2 9 6 5 1 . 2 1 2 Average Overweight (x) . | . . . 1 2 2 2 . . . . . Largest Inventory Capacity 10 | 8 10 10 10 10 10 10 10 10 10 10 10 Average Capacity 9 | 7 8 10 10 10 10 10 10 10 10 10 10 Most Carried 10 | 7 10 10 10 10 10 10 10 10 10 10 10 Average Carried 8 | 3 7 9 9 9 8 8 8 10 8 9 8 Final Capacity 10 | 8 10 10 10 10 10 10 10 10 10 10 10 Final Carried 10 | 7 10 9 10 9 8 9 10 10 10 10 9 Class Distribution -------------------- 56% | Mutant 24% | Scavenger-Mutant 9% | Assassin 6% | Hacker-Mutant Dominant Class ---------------- Mutant | -10/Materials Mutant | -10/Mines Mutant | -10/Exiles Mutant | -9/Mines Mutant | -8/Materials Mutant | -7/Factory Mutant | -7/Garrison Mutant | -7/Factory Scavenger-Mutant | -7/Garrison Ninja | -7/Factory Scavenger-Mutant | -7/Garrison Resources | -11 -10 -10 -10 -9 -8 -7 -7 -7 -7 -7 -7 ----------- Run | Jun Mat Min Exi Min Mat Fac Gar Fac Gar Fac Gar Matter Collected 3398 | 310 446 424 . 57 113 186 291 . 1112 . 459 Remotely . | . . . . . . . . . . . . Salvage Created 6082 | 158 646 241 38 234 416 193 1821 60 1230 . 1045 Parts 307 | 10 50 18 . 2 37 11 52 2 76 . 49 Haulers Intercepted 2 | . 2 . . . . . . . . . . Recyclers Shooed . | . . . . . . . . . . . . Parts Field Recycled . | . . . . . . . . . . . . Retrieved Matter . | . . . . . . . . . . . . Parts Self-Destructed . | . . . . . . . . . . . . Prevented . | . . . . . . . . . . . . Kills | -11 -10 -10 -10 -9 -8 -7 -7 -7 -7 -7 -7 ------- Run | Jun Mat Min Exi Min Mat Fac Gar Fac Gar Fac Gar Combat Hostiles Destroyed 129 | . 13 9 1 13 9 4 28 1 29 . 22 Melee 19 | . . . . . . . . 1 1 . 17 Guns 104 | . 13 9 1 13 9 3 23 . 28 . 5 Classes Destroyed 19 | 3 5 1 1 1 3 1 1 . 3 . . Worker 2 | 1 . . . . 1 . . . . . . Builder 1 | . . 1 . . . . . . . . . Tunneler 6 | 3 2 1 . . . . . . . . . Hauler 2 | . 2 . . . . . . . . . . Recycler 1 | 1 . . . . . . . . . . . Mechanic 1 | . 1 . . . . . . . . . . Operator 1 | . . . . . 1 . . . . . . Watcher 6 | . 3 . . . 2 1 . . . . . Swarmer 34 | . 5 6 . . 4 1 10 . 4 . 4 Cutter 3 | . . . . . . . . . 3 . . Grunt 55 | . 8 3 . 2 3 . 12 . 15 . 12 Duelist 2 | . . . . . . . 2 . . . . Sentry 7 | . . . . . 1 . 3 1 1 . 1 Demolisher 1 | . . . 1 . . . . . . . . Specialist 1 | . . . . . . . . . 1 . . Hunter 3 | . . . . . . . . . 1 . 2 Programmer 11 | . . . . . . 3 1 . 4 . 3 Heavy 1 | . . . . . 1 . . . . . . Assembled 11 | . . . . 11 . . . . . . . Best Kill Streak 7 | 4 4 6 1 7 4 1 6 1 4 . 3 Combat Bots Only 7 | . 3 6 1 7 4 1 6 1 4 . 3 Max Kills in Single Turn 2 | 1 2 2 1 1 1 1 1 1 2 . 1 Gunslinging 1 | . 1 . . . . . . . . . . Exploded . | . . . . . . . . . . . . Melee 1 | . . . . . . . . 1 1 . 1 Uniques/NPCs Destroyed . | . . . . . . . . . . . . Combat | -11 -10 -10 -10 -9 -8 -7 -7 -7 -7 -7 -7 -------- Run | Jun Mat Min Exi Min Mat Fac Gar Fac Gar Fac Gar Damage Taken 7631 | . 630 293 . 145 717 382 2054 415 1572 87 1336 Core 1090 | . 100 78 . . 204 . 240 38 137 13 280 Absorbed by Shields 532 | . . . . . . . 271 117 26 . 118 Reduced by Siege Mode 29 | . . . . . . . . . 29 . . Regen/Repaired (Parts) 792 | . . . . . . 368 . 424 . . . Core Remaining (%) 63 | 100 . . . 28 62 . . . . . . Volleys Fired 446 | 11 60 23 . . 5 4 167 6 144 . 26 Largest 2 | 2 2 2 . . 1 1 1 1 2 . 2 Hottest 100 | 40 40 40 . . 100 20 60 33 66 . 100 Shots Fired 805 | 22 120 43 3 43 59 9 222 6 251 . 27 Gun 800 | 22 120 43 3 43 54 9 222 6 251 . 27 Cannon . | . . . . . . . . . . . . Launcher . | . . . . . . . . . . . . Special 5 | . . . . . 5 . . . . . . Kinetic 462 | 22 120 43 . . . 3 14 6 251 . 3 Thermal 319 | . . . 3 43 59 6 208 . . . . Explosive . | . . . . . . . . . . . . Electromagnetic 24 | . . . . . . . . . . . 24 Robot Hit Streak 41 | 5 9 6 5 12 21 5 41 . 14 . 16 Robot Miss Streak 9 | 2 9 2 . 1 4 1 3 . 5 . 1 Penetration Max 1 | . . . . . . . . . 1 . . Secondary Targets 9 | . 3 3 . . . . . . 3 . . Max Gunslinging Chain 1 | . 1 1 . . . . . . 1 . . Autonomous 165 | . . . 3 43 54 6 59 . . . . Shots Hit Robots 606 | 13 69 27 3 35 41 15 189 5 150 . 59 Core Hits 234 | 6 32 12 1 14 17 4 70 2 46 . 30 Critical Kills 3 | . 2 . . . . . . . 1 . . Critical Parts Destroyed 8 | . 1 . . . . 4 1 . 2 . . Critical Strikes 24 | . 3 . . . . 4 5 1 4 . 7 Burn 4 | . . . . . . . 4 . . . . Destroy 7 | . 3 . . . . . . . 4 . . Corrupt 2 | . . . . . . . . . . . 2 Smash 5 | . . . . . . 4 1 . . . . Sever 6 | . . . . . . . . 1 . . 5 Melee Attacks 93 | . . . . . . 11 12 6 3 . 61 Impact 21 | . . . . . . 11 10 . . . . Slashing 72 | . . . . . . . 2 6 3 . 61 Piercing . | . . . . . . . . . . . . Sneak Attacks . | . . . . . . . . . . . . Combat Hostiles . | . . . . . . . . . . . . Follow-up Attacks 6 | . . . . . . . . . . . 6 Damage Inflicted 13632 | 138 909 362 87 930 1215 508 4303 208 3134 . 1838 Guns 11272 | 138 905 362 87 930 1215 211 3959 . 3101 . 364 Cannons . | . . . . . . . . . . . . Explosions 46 | . . . . . . . . . . . 46 Melee 2310 | . . . . . . 297 344 208 33 . 1428 Ramming 4 | . 4 . . . . . . . . . . Kinetic 4595 | 138 905 362 . . . 35 54 . 3101 . . Thermal 6359 | . . . 87 930 1215 176 3905 . . . 46 Explosive . | . . . . . . . . . . . . Electromagnetic 364 | . . . . . . . . . . . 364 Impact 641 | . . . . . . 297 344 . . . . Slashing 1669 | . . . . . . . . 208 33 . 1428 Piercing . | . . . . . . . . . . . . Highest Corruption 4 | . 1 1 1 1 1 2 4 . 2 2 3 Average Corruption 1 | . 1 1 1 1 1 1 2 . 1 2 2 Corruption Purged 4 | . . . . . . . 4 . . . . Corruption Blocked . | . . . . . . . . . . . . Effects 98 | . 4 11 3 5 . 13 9 . 21 3 29 Message Errors 31 | . 2 1 1 3 . 8 4 . 3 . 9 Matter Fused 29 | . 1 5 2 1 . 2 3 . 6 1 8 Heat Flow Errors 7 | . . . . . . 1 . . 4 . 2 Energy Discharges 9 | . . 2 . . . 1 1 . 2 . 3 Parts Rejected 1 | . . . . . . . . . 1 . . Data Loss (minor) 9 | . 1 1 . . . . . . 3 1 3 Data Loss (major) 5 | . . 1 . 1 . . . . 1 1 1 Misfires 2 | . . 1 . . . . . . 1 . . Alerts 4 | . . . . . . 1 1 . . . 2 Weapon Failures 1 | . . . . . . . . . . . 1 Overload Shots 3 | . . . . . . . 3 . . . . Effects 1 | . . . . . . . 1 . . . . Heat Surge 1 | . . . . . . . 1 . . . . Overflow Damage 248 | . . . . . . 170 74 . . . 4 Projectiles . | . . . . . . . . . . . . Explosions . | . . . . . . . . . . . . Melee 248 | . . . . . . 170 74 . . . 4 Knockbacks 5 | . . . . . . 3 2 . . . . Impact 5 | . . . . . . 3 2 . . . . Kinetic . | . . . . . . . . . . . . Secondary . | . . . . . . . . . . . . Self-Inflicted Damage 48 | . 2 . . . . . . . . . 46 Shots 1 | . . . . . . . . . . . 1 Rammed 1 | . 1 . . . . . . . . . . Targets Rammed 1 | . 1 . . . . . . . . . . Kicked . | . . . . . . . . . . . . Crushed . | . . . . . . . . . . . . Highest Temperature 278 | . 20 . . 4 24 259 278 22 249 8 192 Average Temperature 47 | . 6 . . 4 9 115 58 7 54 8 61 Received Heat Transfer 1993 | . 249 54 . 35 72 18 543 116 420 27 459 Siege Activations 4 | . . . . . . . . . 4 . . Total Turns 83 | . . . . . . . . . 83 . . Longest Duration 39 | . . . . . . . . . 39 . . Robots Corrupted . | . . . . . . . . . . . . Combat Hostiles . | . . . . . . . . . . . . Parts Fried 5 | . . . . . . 3 . . . . 2 Impact Corruptions 11 | . . . . . . 8 3 . . . . Robots Melted 2 | . . . . . . . 2 . . . . Combat Hostiles 2 | . . . . . . . 2 . . . . Parts Melted 11 | . . . 1 . 3 1 6 . . . . Heat Transferred 9852 | . . . 111 1184 1554 185 6768 . . . 50 Parts Sabotaged . | . . . . . . . . . . . . Parts Stolen . | . . . . . . . . . . . . Parts Stripped . | . . . . . . . . . . . . Power Chain Reactions 1 | . . . . . . . . . . . 1 Missiles Intercepted . | . . . . . . . . . . . . Alert | -11 -10 -10 -10 -9 -8 -7 -7 -7 -7 -7 -7 ------- Run | Jun Mat Min Exi Min Mat Fac Gar Fac Gar Fac Gar Peak Influence 2064 | 25 261 220 . 65 220 84 2064 1132 1967 1162 1651 Initial 1083 | . 16 30 . . 9 20 21 1083 792 1032 813 Average 667 | 8 93 90 . 20 82 23 867 1080 1325 1039 1245 Maximum Alert Level 5 | . 1 1 . . 1 . 5 4 5 4 5 Low Security (%) 43 | 100 91 97 . 100 86 100 13 . . . . Level 1 2 | . 8 2 . . 13 . 3 . . . . Level 2 6 | . . . . . . . 28 . . . . Level 3 18 | . . . . . . . 25 81 36 95 24 Level 4 19 | . . . . . . . 14 18 35 4 70 Level 5 8 | . . . . . . . 13 . 28 . 4 High Security . | . . . . . . . . . . . . Max Security . | . . . . . . . . . . . . Squads Dispatched 13 | . 3 . . . 2 4 . 2 . 2 . Investigation 4 | . 1 . . . . 1 . . . 2 . Extermination 3 | . . . . . . 3 . . . . . Reinforcement 4 | . 2 . . . 2 . . . . . . Assault . | . . . . . . . . . . . . Garrison 2 | . . . . . . . . 2 . . . Intercept . | . . . . . . . . . . . . Searches Triggered . | . . . . . . . . . . . . Construction Impeded . | . . . . . . . . . . . . Haulers Reinforced . | . . . . . . . . . . . . Active Scanning Responses 2 | . . . . . . . . . . 1 1 Cargo Convoy Interrupts . | . . . . . . . . . . . . Stealth | -11 -10 -10 -10 -9 -8 -7 -7 -7 -7 -7 -7 --------- Run | Jun Mat Min Exi Min Mat Fac Gar Fac Gar Fac Gar Distress Signals 5 | . 1 1 . 1 . . . 1 . 1 . Communications Jammed . | . . . . . . . . . . . . Distress Signals . | . . . . . . . . . . . . Times Spotted 170 | . 19 9 1 17 13 7 38 2 29 6 29 Peak Tracking Total 9 | . 4 3 3 9 5 3 7 2 4 7 4 Tactical Retreats 15 | . . . . 2 1 2 2 . 1 . 7 Traps | -11 -10 -10 -10 -9 -8 -7 -7 -7 -7 -7 -7 ------- Run | Jun Mat Min Exi Min Mat Fac Gar Fac Gar Fac Gar Traps Triggered 12 | . 1 . . . 1 3 1 . 2 . 4 Indirectly . | . . . . . . . . . . . . Trap Hack Attempts . | . . . . . . . . . . . . Triggered . | . . . . . . . . . . . . Disarmed . | . . . . . . . . . . . . Reprogrammed . | . . . . . . . . . . . . Reused . | . . . . . . . . . . . . Traps Extracted . | . . . . . . . . . . . . Installed . | . . . . . . . . . . . . Triggered 2 | . . . . 2 . . . . . . . Exploded 1 | . . . 1 . . . . . . . . Machines | -11 -10 -10 -10 -9 -8 -7 -7 -7 -7 -7 -7 ---------- Run | Jun Mat Min Exi Min Mat Fac Gar Fac Gar Fac Gar Machines Disabled 14 | . . . . . . . 3 1 8 . 2 Max in Single Turn 2 | . . . . . . . 1 1 2 . 2 Garrison Relay 1 | . . . . . . . 1 . . . . Phase Generator 3 | . . . . . . . 1 . 1 . 1 Machines Repaired . | . . . . . . . . . . . . Machines Sabotaged . | . . . . . . . . . . . . Overloaded Fab Kills . | . . . . . . . . . . . . Hacking | -11 -10 -10 -10 -9 -8 -7 -7 -7 -7 -7 -7 --------- Run | Jun Mat Min Exi Min Mat Fac Gar Fac Gar Fac Gar Machines Accessed 34 | . 8 . 1 . 2 13 2 2 3 2 1 Terminals 20 | . 6 . . . 2 6 2 . 3 . 1 Fabricators 1 | . . . . . . 1 . . . . . Repair Stations 4 | . . . . . . 3 . 1 . . . Recycling Units 2 | . 2 . . . . . . . . . . Scanalyzers 2 | . . . . . . 1 . . . 1 . Garrison Access 4 | . . . . . . 2 . 1 . 1 . Total Hacks 81 | . 25 . 1 . 8 27 4 4 5 6 1 Successful 43 | . 12 . 1 . 4 14 2 3 1 5 1 Failed 38 | . 13 . . . 4 13 2 1 4 1 . Catastrophic 5 | . 1 . . . 1 2 . . 1 . . Database Lockouts . | . . . . . . . . . . . . Manual 33 | . 18 . 1 . 7 7 . . . . . Terminals 53 | . 20 . . . 8 15 4 . 5 . 1 Fabricators 2 | . . . . . . 2 . . . . . Repair Stations 8 | . . . . . . 5 . 3 . . . Recycling Units 5 | . 5 . . . . . . . . . . Scanalyzers 7 | . . . . . . 2 . . . 5 . Garrison Access 5 | . . . . . . 3 . 1 . 1 . Terminal Hacks 17 | . 5 . 1 . 2 5 2 . 1 . 1 Record 1 | . . . . . . 1 . . . . . Prototype ID Bank 1 | . 1 . . . . . . . . . . Level Access Points 1 | . 1 . . . . . . . . . . Branch Access Points 1 | . . . . . . 1 . . . . . Emergency Access Points 2 | . . . . . . 1 1 . . . . Alert Level 3 | . 1 . . . 1 1 . . . . . Unreport Threat 1 | . 1 . . . . . . . . . . Locate Traps 1 | . . . . . . 1 . . . . . Zone Layout 2 | . 1 . . . 1 . . . . . . Garrison Registry 1 | . . . . . . . . . 1 . . Patrol Navigation 2 | . . . . . . . 1 . . . 1 EX-Prototype ID Bank 1 | . . . 1 . . . . . . . . Fabricator Hacks 1 | . . . . . . 1 . . . . . Network Status 1 | . . . . . . 1 . . . . . Repair Station Hacks 6 | . . . . . . 4 . 2 . . . Scan Component 3 | . . . . . . 2 . 1 . . . Repair 3 | . . . . . . 2 . 1 . . . Recycling Unit Hacks 2 | . 2 . . . . . . . . . . Retrieve Components 2 | . 2 . . . . . . . . . . Scanalyzer 4 | . . . . . . . . . . 4 . Insert Component 2 | . . . . . . . . . . 2 . Analyze 2 | . . . . . . . . . . 2 . Garrison Access Hacks 3 | . . . . . . 1 . 1 . 1 . Unlock Access 3 | . . . . . . 1 . 1 . 1 . Unauthorized Hacks 10 | . 5 . . . 2 3 . . . . . Terminals 7 | . 3 . . . 2 2 . . . . . Botnet 4 | . 2 . . . 1 1 . . . . . Operators 3 | . 1 . . . 1 1 . . . . . Fabricators 1 | . . . . . . 1 . . . . . Report 1 | . . . . . . 1 . . . . . Repair Stations . | . . . . . . . . . . . . Recycling Units 2 | . 2 . . . . . . . . . . Monitor 1 | . 1 . . . . . . . . . . Reject 1 | . 1 . . . . . . . . . . Scanalyzers . | . . . . . . . . . . . . Garrison Access . | . . . . . . . . . . . . Data Cores Recovered 1 | . . . . . 1 . . . . . . Used 1 | . . . . . 1 . . . . . . Hacking Detections 26 | . 6 . . . 2 10 2 2 2 1 1 Full Trace Events 3 | . . . . . . 1 . . 1 1 . Feedback Events . | . . . . . . . . . . . . Feedback Blocked . | . . . . . . . . . . . . Robot Schematics Acquired . | . . . . . . . . . . . . Robots Built . | . . . . . . . . . . . . Authchips . | . . . . . . . . . . . . Time . | . . . . . . . . . . . . Total Robot Build Rating . | . . . . . . . . . . . . Part Schematics Acquired 2 | . . . . . . . . . . 2 . Parts Built . | . . . . . . . . . . . . Authchips . | . . . . . . . . . . . . Time . | . . . . . . . . . . . . Total Part Build Rating . | . . . . . . . . . . . . Parts Repaired 3 | . . . . . . 2 . 1 . . . Time 94 | . . . . . . 63 . 31 . . . Parts Recycled . | . . . . . . . . . . . . Recycled Matter . | . . . . . . . . . . . . Retrieved Matter . | . . . . . . . . . . . . Retrieved Components 3 | . 3 . . . . . . . . . . Parts Scanalyzed 2 | . . . . . . . . . . 2 . Part Schematics Acquired 2 | . . . . . . . . . . 2 . Parts Damaged . | . . . . . . . . . . . . Bothacking | -11 -10 -10 -10 -9 -8 -7 -7 -7 -7 -7 -7 ------------ Run | Jun Mat Min Exi Min Mat Fac Gar Fac Gar Fac Gar Used RIF Installer 2 | . . . . . . . 1 . 1 . . Command Fork 1 | . . . . . . . . . 1 . . Robots Hacked . | . . . . . . . . . . . . Non-combat . | . . . . . . . . . . . . Combat . | . . . . . . . . . . . . Robot Hacks Applied . | . . . . . . . . . . . . Relay Couplers Released 3 | . . . . . . . 3 . . . . Machine Destruction 3 | . . . . . . . 3 . . . . Fabnet Peak Effective % . | . . . . . . . . . . . . Robots Rewired 12 | . . . . . . . 9 . 3 . . Allies Hacked . | . . . . . . . . . . . . Hacks Repelled . | . . . . . . . . . . . . Allies | -11 -10 -10 -10 -9 -8 -7 -7 -7 -7 -7 -7 -------- Run | Jun Mat Min Exi Min Mat Fac Gar Fac Gar Fac Gar Total Allies 14 | . . . . . . . 11 . 3 . . Largest Group 4 | . . . . . . . 4 3 3 . . Highest-Rated Group 124 | . . . . . . . 124 63 48 . . Highest-Rated Ally 62 | . . . . . . . 62 21 16 . . Total Orders 2 | . . . . . . . . 1 1 . . ROAM 2 | . . . . . . . . 1 1 . . Ally Attacks 62 | . . . . . . . 39 13 10 . . Total Damage 1428 | . . . . . . . 966 340 122 . . Kills 9 | . . . . . . . 8 1 . . . Allies Corrupted . | . . . . . . . . . . . . Allies Melted . | . . . . . . . . . . . . Intel | -11 -10 -10 -10 -9 -8 -7 -7 -7 -7 -7 -7 ------- Run | Jun Mat Min Exi Min Mat Fac Gar Fac Gar Fac Gar Robot Analysis Total . | . . . . . . . . . . . . Derelict Logs Recovered 4 | . . 2 . 2 . . . . . . . Drone Launches . | . . . . . . . . . . . . Drone Recoveries . | . . . . . . . . . . . . Exploration | -11 -10 -10 -10 -9 -8 -7 -7 -7 -7 -7 -7 ------------- Run | Jun Mat Min Exi Min Mat Fac Gar Fac Gar Fac Gar Turns Passed 13940 | 103 996 720 374 868 596 2316 3310 216 2309 242 1890 Spaces Moved 7516 | 62 774 567 333 693 346 1386 1361 99 1088 225 582 Core 14 | 4 . . . 9 1 . . . . . . Treads 2608 | . 77 11 . . . . 1256 99 1088 73 4 Legs 410 | . . . . . 37 . . . . . 373 Wheels 4127 | 58 697 556 333 684 308 1386 105 . . . . Hover 357 | . . . . . . . . . . 152 205 Flight . | . . . . . . . . . . . . Fastest Speed 48 | 50 90 95 95 110 95 115 115 158 152 48 48 Average Speed 127 | 88 98 96 102 115 125 126 157 158 162 86 104 Slowest Speed 500 | 100 160 160 110 500 350 155 165 158 330 165 260 Overloaded Moves . | . . . . . . . . . . . . Propulsion Burnouts . | . . . . . . . . . . . . Robots Hopped . | . . . . . . . . . . . . Cave-ins Triggered . | . . . . . . . . . . . . Exploration Rate (%) 53 | 4 99 100 66 99 23 38 89 5 92 6 26 Regions Visited 11 Branch Regions 3 Pre-discovered Areas 1 | . . 1 . . . . . . . . . Known Exits Taken 4 | . . . . . 1 1 . 1 . 1 . Unknown Exits Taken 5 | 1 1 1 1 1 . . . . . . . Scrap Searched 2 | . . 1 . 1 . . . . . . . Spaces Dug 11 | . . . . . 5 . . 3 . . 3 Terrain Destroyed 283 | . . . . 11 17 . 71 3 102 . 79 Melee 3 | . . . . . . . . . . . 3 Projectile 55 | . . . . 11 17 . 1 3 23 . . AOE 215 | . . . . . . . 70 . 69 . 76 Terrain Rammed . | . . . . . . . . . . . . Walls Destroyed . | . . . . . . . . . . . . Machines Disabled . | . . . . . . . . . . . . Actions | -11 -10 -10 -10 -9 -8 -7 -7 -7 -7 -7 -7 --------- Run | Jun Mat Min Exi Min Mat Fac Gar Fac Gar Fac Gar Total 11124 | 87 889 699 366 762 491 1932 2356 143 1372 272 1755 Wait 2667 | . 24 105 31 67 119 494 663 32 84 38 1010 Move 7507 | 61 773 566 332 692 345 1386 1360 98 1087 225 582 Hop . | . . . . . . . . . . . . Pick Up 43 | 8 7 1 . . 3 7 11 . 4 1 1 Fast Attach 62 | 6 3 . 1 . 7 11 6 1 12 4 11 Attach 45 | 1 1 2 . 1 5 4 16 . 8 . 7 Detach 29 | . . . 1 . 2 2 13 . 6 . 5 Swap 18 | . 9 1 . 2 1 1 . . 1 . 3 Drop 61 | . 11 1 1 . 4 12 12 . 9 4 7 Fire 446 | 11 60 23 . . 5 4 167 6 144 . 26 Melee 86 | . . . . . . 11 12 6 3 . 54 Ram 1 | . 1 . . . . . . . . . . Kick . | . . . . . . . . . . . . Crush . | . . . . . . . . . . . . Escape Stasis 49 | . . . . . . . . . . . 49 Rewire 110 | . . . . . . . 96 . 14 . . Trap . | . . . . . . . . . . . . Miscellaneous . | . . . . . . . . . . . . Route ------- -11/Junkyard -10/Materials (discovered 5 exits: *Mat x3 / [*Min x2]) -10/Mines (discovered 3 exits: *Mat x2 / *Exi) -10/Exiles -9/Mines (discovered 2 exits: *Mat x2) -8/Materials -7/Factory (discovered 6 exits: *Fac x2 / Sto / *Low x2 / Gar) -7/Garrison (discovered 3 exits: *Fac x3) -7/Factory -7/Garrison (discovered 4 exits: *Fac x3 / *Fac) -7/Factory -7/Garrison History --------- Turn | Location | Event 20 | -11/Junkyard | Discovered new exit (range 15) 104 | -11/Junkyard | Entered Materials 329 | -10/Materials | Build established: Mutant 346 | -10/Materials | Discovered new exit (range 6) 405 | -10/Materials | Discovered new exit (range 10) 843 | -10/Materials | Discovered new exit (range 5) 877 | -10/Materials | Identified exit to Materials 951 | -10/Materials | Discovered new exit (range 16) 1100 | -10/Materials | Entered Mines 1145 | -10/Mines | Core integrity fell below 50% 1314 | -10/Mines | Discovered exit to Materials (range 4) 1315 | -10/Mines | Learned location of 1 exit from Materials 1338 | -10/Mines | Learned location of Zion (-7) 1421 | -10/Mines | Excavation squad dispatched 1421 | -10/Mines | A large section of the Mines collapsed 1501 | -10/Mines | Discovered exit to Materials (range 7) 1652 | -10/Mines | Deemed a non-threat by the Exiles lab entrance 1652 | -10/Mines | Discovered new exit (range 5) 1820 | -10/Mines | Entered Exiles 1843 | -10/Exiles | Met 8R-AWN 1859 | -10/Exiles | Met EX-HEX 1897 | -10/Exiles | Met EX-DEC 1928 | -10/Exiles | Met EX-BIN 1941 | -10/Exiles | Aligned with FarCom system 1942 | -10/Exiles | Given EX-Vault access code 1974 | -10/Exiles | Opened EX-Vault 1981 | -10/Exiles | Found AWS/Thermal 2005 | -10/Exiles | Warned to stay clear of 0b10 Research branches 2021 | -10/Exiles | Exiles lab attacked by MAIN.C 2179 | -10/Exiles | Discovered new exit (range 10) 2194 | -10/Exiles | Left Exiles lab with AWS/Thermal 2194 | -10/Exiles | Entered Mines 2259 | -9/Mines | Learned Materials terminal intel 2292 | -9/Mines | Assembled infested the area 2297 | -9/Mines | Assisted by a Guerilla fighting off Assembled 2365 | -9/Mines | Destroyed 7 combat bots 2679 | -9/Mines | Discovered new exit (range 15) 2707 | -9/Mines | Discovered new exit (range 16) 2937 | -9/Mines | Found a hidden stash of uninstalled traps 3062 | -9/Mines | Entered Materials 3062 | -8/Materials | Evolved 4 slots: Propulsion x2, Utility x2 3063 | -8/Materials | Identified exit to Factory 3064 | -8/Materials | Loaded intel: 12 terminal locations 3216 | -8/Materials | Lost 3 parts (2n1u) 3658 | -8/Materials | Entered Factory 3658 | -7/Factory | Evolved 2 slots: Utility x2 3679 | -7/Factory | Build established: Scavenger-Mutant 4081 | -7/Factory | Repaired Arm. Treads 4085 | -7/Factory | Discovered new exit (range 4) 4209 | -7/Factory | Identified exit to Storage 4209 | -7/Factory | Identified exit to Lower Caves 4443 | -7/Factory | Build established: Hacker-Mutant 4596 | -7/Factory | Discovered new exit (range 12) 5319 | -7/Factory | Build established: Mutant 5500 | -7/Factory | Discovered new exit (range 11) 5631 | -7/Factory | Repaired Hrd. Heavy Armor Plating 5974 | -7/Factory | Identified exit to Garrison 5974 | -7/Factory | Entered Garrison 5998 | -7/Garrison | Triggered checkpoint 6656 | -7/Garrison | Triggered checkpoint 6756 | -7/Garrison | Discovered new exit (range 10) 6870 | -7/Garrison | Triggered checkpoint 6914 | -7/Garrison | Triggered checkpoint 7264 | -7/Garrison | Found embedded Infiltrators 7320 | -7/Garrison | Discovered new exit (range 12) 7452 | -7/Garrison | Triggered checkpoint 7479 | -7/Garrison | Garrison Relay disabled 7634 | -7/Garrison | Triggered checkpoint 7720 | -7/Garrison | Installed Relay Interface Framework 8330 | -7/Garrison | Triggered checkpoint 8341 | -7/Garrison | Discovered new exit (range 6) 8735 | -7/Garrison | Phase Generator disabled 9096 | -7/Garrison | Triggered checkpoint 9284 | -7/Garrison | Entered Factory 9284 | -7/Factory | Accompanied by 3 allies 9441 | -7/Factory | Repaired Imp. Heavy Treads 9471 | -7/Factory | Identified exit to Garrison 9500 | -7/Factory | Entered Garrison 9566 | -7/Garrison | Triggered checkpoint 9596 | -7/Garrison | Triggered checkpoint 9692 | -7/Garrison | Triggered checkpoint 9737 | -7/Garrison | Discovered new exit (range 6) 9986 | -7/Garrison | Heavy support dispatched to Factory 9991 | -7/Garrison | Phase Generator disabled 10015 | -7/Garrison | Build established: Scavenger-Mutant 10357 | -7/Garrison | Triggered checkpoint 10362 | -7/Garrison | Triggered checkpoint 10515 | -7/Garrison | Triggered checkpoint 10612 | -7/Garrison | Discovered new exit (range 17) 10668 | -7/Garrison | Heavy support dispatched to Factory 10725 | -7/Garrison | Expanded RIF knowledge: Command Fork 10852 | -7/Garrison | Spotted B-75 Beast 10875 | -7/Garrison | Discovered new exit (range 6) 11005 | -7/Garrison | Core integrity fell below 50% 11193 | -7/Garrison | Found Prototype Device 11193 | -7/Garrison | Identified Active Sensor Suite 11251 | -7/Garrison | H-XX Assembler disabled 11295 | -7/Garrison | Discovered new exit (range 5) 11302 | -7/Garrison | Identified exit to Factory 11347 | -7/Garrison | Triggered checkpoint 11450 | -7/Garrison | Discovered exit to Factory (range 23) 11450 | -7/Garrison | Discovered exit to Factory (range 26) 11450 | -7/Garrison | Discovered exit to Factory (range 57) 11450 | -7/Garrison | Discovered new exit (range 58) 11766 | -7/Garrison | Build established: Assassin 11807 | -7/Garrison | Identified exit to Factory 11809 | -7/Garrison | Entered Factory 12051 | -7/Factory | Identified exit to Garrison 12051 | -7/Factory | Entered Garrison 12124 | -7/Garrison | Phase Generator disabled 12477 | -7/Garrison | Core integrity fell below 20% 13112 | -7/Garrison | Build established: Scavenger-Mutant 13382 | -7/Garrison | Spotted B-75 Beast 13941 | -7/Garrison | Destroyed by G-47 Trooper with Particle Gun Last Messages --------------- 13527_ :SU|/,0FCKG 6KLU:WL/SEX5H U| 13568_ System corrupted: Energy discharge (-72). 13585_ ZQOUWLZLEF4ONCGP1CUFE 13643_ Y-54 Guardian destroyed. 13659_ System corrupted: Shock Rifle failed to cycle. 13667_ Lgt. Nuclear Core fried. 13667_ G-47 Trooper destroyed. 13677_ System corrupted: Matter fused (-9). 13677_ Acquired 9 matter. 13757_ Acquired Shock Rifle. 13762_ Acquired 10 matter. 13764_ S-27 Virus destroyed. 13784_ Shock Rifle destroyed. 13788_ S-27 Virus destroyed. 13833_ System corrupted: Heat flow error (+140). 13851_ ALERT: Garrison interior compromised. 13899_ P5#8:M,I=%4KFKSDO KDW3&F7LTDPEC:A 13922_ System corrupted: Heat flow error (+230). 13938_ System corrupted: Matter fused (-8). 13938_ Acquired 8 matter. Map ----- +----------------------------------------------------+ | ?????????????????????????????????????????????????? | | ?????????????????????????????????????????????????? | | ?????????????????????????????????????????????????? | | ?????????????????????????????????????????????????? | | ?????????????????????????????????????????????????? | | ?????????????????????????????????????????????????? | | ????????????????????????? ??????????????????????? | | ???????????????????????## #?????????????????????? | | ??????????????????????? ?????????????????????? | | ??????????????????? ??? ?????????????????????? | | ??????????????????? ??? ????????? ???????????? | | ????????????????????g??# #???????? ???????????? | | ?????##????????????? ### ##?????# #??????????? | | ?##### #####????????? ???? s ??????????? | | ## # ##????????? ???? s???????????? | | # # # ##???????? = ??? ?s??????????? | | #????????? [% ?? ??????????????? | | # #?????????# *#? #????#??????????? | | ########### ## ## #??????????? | | # # #??????????? | | ! ! ???????? | | # ########!%= #??????????? | | #=%#??????##g### ##??????????????? | | #= #???????#=#??????#???????????????? | | #% #?###???#*#??????????????????????? | | # ### =###"#####@#??????????????????????? | | ## #?#*=!% = %*%%=#??????????????????????? | | ?##### # ###?# %##%########????????s?????????????? | | ?????# ###???# ##=#?????????????????????????????? | | ?????# #?????# ##!#?????????????????????????????? | | ?????# #?????# ##/#?????????????????????????????? | | ????##"####### ##/#?????????????????????????????? | | ???## "BB#?????????????????????????????? | | ???#" %[%BB#?????????????????????????????? | | ???## ##### #""=%#?????????????????????????????? | | ????# #???# ####[#?????????????????????????????? | | ????#####???#*#??#!#???#######???????????????????? | | ?????#"######=#??#!#???#"""""#???????????????????? | | ?????## # ##%#### ######[% ##???????????????????? | | ??????# !!"[ *[[ [!% =%*[#???????????????????? | | ??????# #### ###### ###???????????????????? | | ??????## #??# #????# #?????????????????????? | | ???????#####??#######????# #?????????????????????? | | ?????????????????????????# #?????????????????????? | | ?????????????????????????# ##????????????????????? | | ?????????????????????????# "#????????????????????? | | ?????????????????????????# T#????????????????????? | | ?????????????????????????#""#????????????????????? | | ?????????????????????????####????????????????????? | | ?????????????????????????????????????????????????? | +----------------------------------------------------+ Best States ------------- Heat Dissipation 48 Energy Generation 18 Energy Capacity 310 Matter Stores 300 Matter Capacity 300 Sight Range 20 Robot Scan Range 20 Terrain Scan Range 16 Terrain Scan Density 10 Jamming Range 14 Armor Coverage 600 Resistance: TH 20 Evasion (%) 55 Targeting Accuracy 18 Target Analysis 5 Core Analysis 6 Recoil Reduction 4 Kinecelleration 40 Offensive Hacking 10 Defensive Hacking 10 Item Schematics ----------------- Arm. Treads | -7/Factory | Scanalyzed Adv. Targeting Computer | -7/Factory | Scanalyzed Robot Schematics ------------------ None Fabricated ------------ Nothing Alien Tech Used ----------------- None Achievements -------------- Gun Specialist Challenges ------------ None Game ------ Seed DerelictScanPrototype Manual? 0 Play Time 01:50:19 Cumulative 31.9 hours Start 2024.02.14 @ 03:14:25 End 2024.02.14 @ 05:04:32 Sessions 1 Manual Loads 0 Difficulty Rogue Special Mode None Game No. 33 Rogue 33 Adventurer 0 Explorer 0 Win Type - Total 0 Types 0/0/0/0/0/0/0/0/0 Lore% 34 Gallery% 39 Achievement% 38 Wizard Run 0 Options --------- ASCII 0 Keyboard 0 Movement Mouse Keybinds 0 Fullscreen 1 Font 18/SmallcapsGlow Map View 76x50 Tactical HUD 1 Map Filters NONE Filters NONE Steam 0 RUN: 61b20cfe-3409-421a-8c4d-c2357f5c20a0